[Event "Rapid della Domenica"]
[Site "Chess.com"]
[Date "2020.05.03"]
[Round "2"]
[White "FrancescoZasa"]
[Black "fisherpez"]
[Result "0-1"]
[WhiteElo "586"]
[BlackElo "1594"]
[TimeControl "720+3"]
[EndTime "6:28:59 PDT"]
[Termination "fisherpez ha vinto per scaccomatto"]

1. d4 {[%clk 0:12:02.9]} 1... e6 {[%clk 0:12:02.9]} 2. Nf3 {[%clk 0:12:01.5]}
2... b6 {[%clk 0:12:03.8]} 3. Nc3 {[%clk 0:12:03.1]} 3... Bb4 {[%clk 0:12:04.6]}
4. e4 {[%clk 0:12:02.8]} 4... Bb7 {[%clk 0:12:06.1]} 5. a3 {[%clk 0:12:04.8]}
5... Bxc3+ {[%clk 0:12:07.5]} 6. bxc3 {[%clk 0:12:01.7]} 6... Bxe4 {[%clk
0:12:08.8]} 7. Bd3 {[%clk 0:11:50.6]} 7... Bb7 {[%clk 0:12:05.6]} 8. h3 {[%clk
0:11:45.5]} 8... h6 {[%clk 0:12:07.2]} 9. g4 {[%clk 0:11:46.9]} 9... Qf6 {[%clk
0:11:55.5]} 10. Ne5 {[%clk 0:11:28.7]} 10... Bxh1 {[%clk 0:11:55]} 11. Kf1
{[%clk 0:11:27.7]} 11... Bb7 {[%clk 0:11:53.7]} 12. Qe2 {[%clk 0:11:23.6]} 12...
Nc6 {[%clk 0:11:52.1]} 13. Rb1 {[%clk 0:11:16.8]} 13... Nxe5 {[%clk 0:11:28.7]}
14. dxe5 {[%clk 0:11:15.6]} 14... Qf3 {[%clk 0:11:29.8]} 15. Qxf3 {[%clk
0:11:16.2]} 15... Bxf3 {[%clk 0:11:30.6]} 16. Rb3 {[%clk 0:11:08]} 16... Ne7
{[%clk 0:11:31.6]} 17. Bb5 {[%clk 0:10:51.7]} 17... c6 {[%clk 0:11:28]} 18. Ba6
{[%clk 0:10:47.7]} 18... Nd5 {[%clk 0:11:27.8]} 19. Bb7 {[%clk 0:10:47.8]} 19...
Rb8 {[%clk 0:11:28.3]} 20. Ba6 {[%clk 0:10:45.4]} 20... Nc7 {[%clk 0:11:29.7]}
21. Be2 {[%clk 0:10:40]} 21... Bxe2+ {[%clk 0:11:31]} 22. Kxe2 {[%clk 0:10:42]}
22... O-O {[%clk 0:11:31.9]} 23. Rb4 {[%clk 0:10:37.9]} 23... Nd5 {[%clk
0:11:33.3]} 24. Re4 {[%clk 0:10:32.2]} 24... Nxc3+ {[%clk 0:11:33.6]} 25. Kd3
{[%clk 0:10:26.8]} 25... Nxe4 {[%clk 0:11:35.6]} 26. Kxe4 {[%clk 0:10:26.7]}
26... b5 {[%clk 0:11:37.3]} 27. Kd4 {[%clk 0:10:24.3]} 27... a5 {[%clk
0:11:38.1]} 28. f4 {[%clk 0:10:25.2]} 28... b4 {[%clk 0:11:40]} 29. axb4 {[%clk
0:10:24.5]} 29... axb4 {[%clk 0:11:39.8]} 30. f5 {[%clk 0:10:20.3]} 30... exf5
{[%clk 0:11:37.8]} 31. gxf5 {[%clk 0:10:22.2]} 31... b3 {[%clk 0:11:40.1]} 32.
cxb3 {[%clk 0:10:22.7]} 32... Rxb3 {[%clk 0:11:41.4]} 33. Kc4 {[%clk 0:10:23.1]}
33... Rxh3 {[%clk 0:11:43.2]} 34. e6 {[%clk 0:10:21.3]} 34... fxe6 {[%clk
0:11:44.4]} 35. fxe6 {[%clk 0:10:22.6]} 35... dxe6 {[%clk 0:11:45.5]} 36. Kc5
{[%clk 0:10:24.8]} 36... Rc3+ {[%clk 0:11:44.2]} 37. Kd6 {[%clk 0:10:19.7]}
37... Rxc1 {[%clk 0:11:46.1]} 38. Kxe6 {[%clk 0:10:21.7]} 38... Re1+ {[%clk
0:11:45.7]} 39. Kd6 {[%clk 0:10:23.3]} 39... c5 {[%clk 0:11:46.9]} 40. Kxc5
{[%clk 0:10:24.8]} 40... Rd8 {[%clk 0:11:47.5]} 41. Kc6 {[%clk 0:10:25.7]} 41...
Rc1+ {[%clk 0:11:46.1]} 42. Kb7 {[%clk 0:10:24.1]} 42... Rd2 {[%clk 0:11:47.5]}
43. Kb6 {[%clk 0:10:24.9]} 43... Rb2+ {[%clk 0:11:49.7]} 44. Ka5 {[%clk
0:10:25.9]} 44... Ra1# {[%clk 0:11:51.8]} 0-1

[Event "Rapid della Domenica"]
[Site "Chess.com"]
[Date "2020.05.03"]
[Round "2"]
[White "donaldnecesito"]
[Black "riccardocanossa"]
[Result "1-0"]
[WhiteElo "1660"]
[BlackElo "1420"]
[TimeControl "720+3"]
[EndTime "6:34:19 PDT"]
[Termination "donaldnecesito ha vinto per abbandono"]

1. d4 {[%clk 0:12:01.8]} 1... Nf6 {[%clk 0:11:59]} 2. c4 {[%clk 0:12:02.5]} 2...
g6 {[%clk 0:12:00.3]} 3. Nf3 {[%clk 0:12:04.5]} 3... Bg7 {[%clk 0:12:01.2]} 4.
g3 {[%clk 0:12:06.3]} 4... O-O {[%clk 0:12:01.7]} 5. Bg2 {[%clk 0:12:08.6]} 5...
d6 {[%clk 0:12:02.1]} 6. Nc3 {[%clk 0:12:10.7]} 6... Nbd7 {[%clk 0:12:02.5]} 7.
O-O {[%clk 0:12:12.6]} 7... e5 {[%clk 0:12:03]} 8. e4 {[%clk 0:12:07.7]} 8...
exd4 {[%clk 0:11:59.6]} 9. Nxd4 {[%clk 0:12:09]} 9... Ne5 {[%clk 0:11:50.7]} 10.
b3 {[%clk 0:12:04]} 10... Re8 {[%clk 0:11:34.7]} 11. Bb2 {[%clk 0:11:30.9]}
11... Bd7 {[%clk 0:10:23.8]} 12. Qd2 {[%clk 0:10:23.6]} 12... Nc6 {[%clk
0:10:07.6]} 13. Nxc6 {[%clk 0:10:11.9]} 13... Bxc6 {[%clk 0:10:07.5]} 14. Rfe1
{[%clk 0:10:14.1]} 14... Qd7 {[%clk 0:09:27.7]} 15. Nd5 {[%clk 0:10:08.6]} 15...
Bxd5 {[%clk 0:09:11]} 16. cxd5 {[%clk 0:10:10.3]} 16... Re7 {[%clk 0:08:59.6]}
17. Rac1 {[%clk 0:10:06.8]} 17... Rae8 {[%clk 0:08:55.1]} 18. f3 {[%clk
0:09:55.9]} 18... Nh5 {[%clk 0:08:18.5]} 19. Bxg7 {[%clk 0:09:56.9]} 19... Nxg7
{[%clk 0:08:17.7]} 20. Rc3 {[%clk 0:09:57.9]} 20... f5 {[%clk 0:08:11.7]} 21.
Rec1 {[%clk 0:09:54.2]} 21... Qd8 {[%clk 0:08:00.7]} 22. Qc2 {[%clk 0:09:50.1]}
22... fxe4 {[%clk 0:07:33.5]} 23. fxe4 {[%clk 0:09:50.7]} 23... Nh5 {[%clk
0:07:30.9]} 24. Rxc7 {[%clk 0:09:50.7]} 24... Rxc7 {[%clk 0:07:27]} 25. Qxc7
{[%clk 0:09:52.5]} 25... Qxc7 {[%clk 0:07:24.9]} 26. Rxc7 {[%clk 0:09:53.9]}
26... Rb8 {[%clk 0:06:33.3]} 27. Rd7 {[%clk 0:09:55.2]} 27... Nf6 {[%clk
0:06:21.8]} 28. Rxd6 {[%clk 0:09:56.3]} 28... Rf8 {[%clk 0:06:05.3]} 29. e5
{[%clk 0:09:53.1]} 29... Ne8 {[%clk 0:06:06.1]} 30. Rd7 {[%clk 0:09:53.8]} 30...
Rf5 {[%clk 0:05:50.7]} 31. e6 {[%clk 0:09:48.9]} 1-0

[Event "Rapid della Domenica"]
[Site "Chess.com"]
[Date "2020.05.03"]
[Round "2"]
[White "MarcoCiva"]
[Black "moha1812med"]
[Result "1-0"]
[WhiteElo "1418"]
[BlackElo "1022"]
[TimeControl "720+3"]
[EndTime "6:34:55 PDT"]
[Termination "MarcoCiva ha vinto per abbandono"]

1. d4 {[%clk 0:11:38.1]} 1... Nf6 {[%clk 0:11:40.7]} 2. Nf3 {[%clk 0:11:32]}
2... e6 {[%clk 0:10:59.6]} 3. Bg5 {[%clk 0:11:14.9]} 3... h6 {[%clk 0:11:00.8]}
4. Bh4 {[%clk 0:11:13.2]} 4... Be7 {[%clk 0:11:01.8]} 5. e3 {[%clk 0:11:08.2]}
5... O-O {[%clk 0:10:58.8]} 6. Bd3 {[%clk 0:11:04.7]} 6... Nc6 {[%clk
0:10:49.7]} 7. O-O {[%clk 0:11:02.1]} 7... b6 {[%clk 0:10:48.2]} 8. Nc3 {[%clk
0:11:00]} 8... Bb7 {[%clk 0:10:46.9]} 9. a3 {[%clk 0:10:57.8]} 9... d5 {[%clk
0:10:45.1]} 10. Bg3 {[%clk 0:10:55.6]} 10... Bd6 {[%clk 0:10:08.5]} 11. Bxd6
{[%clk 0:10:53.3]} 11... Qxd6 {[%clk 0:10:07.3]} 12. Qd2 {[%clk 0:10:51.2]}
12... Rad8 {[%clk 0:09:44]} 13. Rfe1 {[%clk 0:10:35.1]} 13... Rfe8 {[%clk
0:09:36.8]} 14. Rad1 {[%clk 0:10:31.9]} 14... Na5 {[%clk 0:09:14.3]} 15. Nb5
{[%clk 0:10:29]} 15... Qc6 {[%clk 0:08:47.4]} 16. Ne5 {[%clk 0:10:26]} 16... Ne4
{[%clk 0:07:43.6]} 17. Qe2 {[%clk 0:10:12]} 17... Qd6 {[%clk 0:05:51.6]} 18.
Nxd6 {[%clk 0:10:11.6]} 18... Rxd6 {[%clk 0:05:52.5]} 19. Bxe4 {[%clk
0:10:08.5]} 19... dxe4 {[%clk 0:05:53]} 20. Qh5 {[%clk 0:09:53.6]} 20... Re7
{[%clk 0:05:41.8]} 21. h3 {[%clk 0:09:49.6]} 21... Rd5 {[%clk 0:05:18.3]} 22.
Qh4 {[%clk 0:09:46.8]} 22... Kf8 {[%clk 0:04:50.8]} 23. Qxe4 {[%clk 0:09:43.9]}
1-0

[Event "Rapid della Domenica"]
[Site "Chess.com"]
[Date "2020.05.03"]
[Round "2"]
[White "toninoiuorio"]
[Black "pedrak"]
[Result "0-1"]
[WhiteElo "1489"]
[BlackElo "1675"]
[TimeControl "720+3"]
[EndTime "6:35:41 PDT"]
[Termination "pedrak ha vinto per abbandono"]

1. d4 {[%clk 0:12:02.9]} 1... Nf6 {[%clk 0:11:56.3]} 2. c4 {[%clk 0:12:04.6]}
2... g6 {[%clk 0:11:47.8]} 3. Nc3 {[%clk 0:12:06.3]} 3... Bg7 {[%clk 0:11:48]}
4. e4 {[%clk 0:12:08.1]} 4... d6 {[%clk 0:11:49.6]} 5. f3 {[%clk 0:12:10.2]}
5... O-O {[%clk 0:11:51]} 6. Be3 {[%clk 0:12:12.6]} 6... Re8 {[%clk 0:11:49.7]}
7. Qd2 {[%clk 0:12:14.6]} 7... e5 {[%clk 0:11:51.2]} 8. d5 {[%clk 0:12:16]} 8...
Nbd7 {[%clk 0:11:51.8]} 9. O-O-O {[%clk 0:12:17.6]} 9... b6 {[%clk 0:11:51.7]}
10. Bd3 {[%clk 0:12:17.9]} 10... Nc5 {[%clk 0:11:53.1]} 11. Bc2 {[%clk
0:12:19.6]} 11... a5 {[%clk 0:11:54.4]} 12. Nge2 {[%clk 0:12:19.3]} 12... Ba6
{[%clk 0:11:50.7]} 13. b3 {[%clk 0:12:20.2]} 13... Ncd7 {[%clk 0:11:46.8]} 14.
Bg5 {[%clk 0:12:17.3]} 14... a4 {[%clk 0:11:46.8]} 15. Kb2 {[%clk 0:12:10.9]}
15... axb3 {[%clk 0:11:48.3]} 16. axb3 {[%clk 0:12:12]} 16... Nc5 {[%clk
0:11:48.1]} 17. Ra1 {[%clk 0:12:10.3]} 17... Qd7 {[%clk 0:11:47.4]} 18. Ra3
{[%clk 0:12:00]} 18... Bb7 {[%clk 0:11:47.9]} 19. Rha1 {[%clk 0:12:00.8]} 19...
Rxa3 {[%clk 0:11:49.2]} 20. Rxa3 {[%clk 0:12:02.4]} 20... Ra8 {[%clk 0:11:50.3]}
21. Rxa8+ {[%clk 0:12:03.8]} 21... Bxa8 {[%clk 0:11:51.9]} 22. b4 {[%clk
0:12:03.4]} 22... Nb7 {[%clk 0:11:48.5]} 23. Kb3 {[%clk 0:11:57.2]} 23... Nd8
{[%clk 0:11:21.9]} 24. Bd3 {[%clk 0:11:53.2]} 24... c6 {[%clk 0:11:16.7]} 25.
Qa2 {[%clk 0:11:52.1]} 25... Qb7 {[%clk 0:11:10.4]} 26. dxc6 {[%clk 0:11:43.2]}
26... Nxc6 {[%clk 0:11:10.5]} 27. Nd5 {[%clk 0:11:41.8]} 27... Nxd5 {[%clk
0:11:11.2]} 28. cxd5 {[%clk 0:11:40.2]} 28... Nd4+ {[%clk 0:11:04.4]} 29. Nxd4
{[%clk 0:11:40.4]} 29... exd4 {[%clk 0:11:06.3]} 30. Qa4 {[%clk 0:11:10.5]}
30... h6 {[%clk 0:10:51.4]} 31. Bf4 {[%clk 0:10:41.7]} 31... Qc8 {[%clk
0:10:25.4]} 32. Bc4 {[%clk 0:10:34]} 32... Bf8 {[%clk 0:09:45.5]} 33. g4 {[%clk
0:09:55.1]} 33... Bb7 {[%clk 0:08:59.6]} 34. Qb5 {[%clk 0:09:41.7]} 34... Qc7
{[%clk 0:08:58.6]} 35. Bg3 {[%clk 0:09:32.1]} 35... Bc8 {[%clk 0:08:16.6]} 36.
Bf2 {[%clk 0:09:18.2]} 36... Bg7 {[%clk 0:08:14.5]} 37. h3 {[%clk 0:09:16.2]}
37... Bd7 {[%clk 0:08:15.7]} 38. Qa6 {[%clk 0:09:16.6]} 38... b5 {[%clk
0:08:02.4]} 39. Bxb5 {[%clk 0:08:38.3]} 39... Bxb5 {[%clk 0:08:03.8]} 40. Qxb5
{[%clk 0:08:38.3]} 40... Qc3+ {[%clk 0:08:05.4]} 41. Ka4 {[%clk 0:08:39.1]}
41... Qc2+ {[%clk 0:08:06.3]} 42. Ka5 {[%clk 0:08:41.1]} 42... Qxf2 {[%clk
0:08:08]} 43. Qb8+ {[%clk 0:08:41.6]} 43... Kh7 {[%clk 0:08:09.5]} 44. Qxd6
{[%clk 0:08:43.6]} 44... d3 {[%clk 0:08:08.9]} 45. b5 {[%clk 0:08:45.6]} 45...
d2 {[%clk 0:08:03.9]} 46. b6 {[%clk 0:08:46.1]} 46... d1=Q {[%clk 0:08:03.9]}
47. Ka6 {[%clk 0:08:43.1]} 47... Qa1+ {[%clk 0:08:02.6]} 48. Kb7 {[%clk
0:08:44.9]} 48... Qa5 {[%clk 0:07:55.1]} 49. Qc7 {[%clk 0:08:32.8]} 49... Qxf3
{[%clk 0:07:42.4]} 50. Qxf7 {[%clk 0:08:30.8]} 50... Qxf7+ {[%clk 0:07:43.2]}
0-1

[Event "Rapid della Domenica"]
[Site "Chess.com"]
[Date "2020.05.03"]
[Round "2"]
[White "SanSecondoPR"]
[Black "Simo2005"]
[Result "0-1"]
[WhiteElo "1315"]
[BlackElo "1663"]
[TimeControl "720+3"]
[EndTime "6:36:57 PDT"]
[Termination "Simo2005 ha vinto per abbandono"]

1. e4 {[%clk 0:12:02.9]} 1... d6 {[%clk 0:11:56.2]} 2. d4 {[%clk 0:12:01.8]}
2... Nf6 {[%clk 0:11:52.4]} 3. Nc3 {[%clk 0:12:01.1]} 3... g6 {[%clk 0:11:44.4]}
4. Bg5 {[%clk 0:11:59.5]} 4... Bg7 {[%clk 0:11:39.8]} 5. Qd2 {[%clk 0:11:59.2]}
5... c6 {[%clk 0:11:33.3]} 6. Bh6 {[%clk 0:12:00.3]} 6... O-O {[%clk 0:10:40.5]}
7. Bxg7 {[%clk 0:12:00.4]} 7... Kxg7 {[%clk 0:10:38.8]} 8. O-O-O {[%clk
0:11:59.9]} 8... Nbd7 {[%clk 0:10:33.6]} 9. f4 {[%clk 0:11:57.3]} 9... b5 {[%clk
0:10:20.4]} 10. Kb1 {[%clk 0:11:48.8]} 10... b4 {[%clk 0:09:55.8]} 11. Na4
{[%clk 0:11:45]} 11... Nxe4 {[%clk 0:09:49.7]} 12. Qe3 {[%clk 0:11:37.4]} 12...
Nef6 {[%clk 0:09:15.5]} 13. Qb3 {[%clk 0:11:25]} 13... Nd5 {[%clk 0:08:38.8]}
14. f5 {[%clk 0:11:16]} 14... Rb8 {[%clk 0:07:59.2]} 15. h4 {[%clk 0:11:09.9]}
15... N7f6 {[%clk 0:07:50.1]} 16. Bd3 {[%clk 0:11:02]} 16... Bxf5 {[%clk
0:06:54.3]} 17. h5 {[%clk 0:10:55]} 17... Bxd3 {[%clk 0:06:40]} 18. Rxd3 {[%clk
0:10:52.1]} 18... Nxh5 {[%clk 0:06:06.6]} 19. Rdh3 {[%clk 0:10:38.6]} 19... Nhf6
{[%clk 0:05:30.4]} 20. Nf3 {[%clk 0:10:20.5]} 20... Qa5 {[%clk 0:04:36.5]} 21.
Nd2 {[%clk 0:10:12.2]} 21... Nc3+ {[%clk 0:04:14.4]} 22. Ka1 {[%clk 0:10:01.2]}
22... Qxa4 {[%clk 0:03:51]} 23. Ne4 {[%clk 0:09:22.1]} 23... Qxb3 {[%clk
0:03:32.4]} 24. cxb3 {[%clk 0:09:10.7]} 24... Ncxe4 {[%clk 0:03:30.7]} 25. g4
{[%clk 0:09:04.3]} 25... Rb5 {[%clk 0:03:25.1]} 0-1

[Event "Rapid della Domenica"]
[Site "Chess.com"]
[Date "2020.05.03"]
[Round "2"]
[White "laremaro"]
[Black "BAKR1980"]
[Result "0-1"]
[WhiteElo "1607"]
[BlackElo "1619"]
[TimeControl "720+3"]
[EndTime "6:37:44 PDT"]
[Termination "BAKR1980 ha vinto per abbandono"]

1. e4 {[%clk 0:12:02.9]} 1... e5 {[%clk 0:11:49.1]} 2. Nf3 {[%clk 0:12:03.8]}
2... Nc6 {[%clk 0:11:49.3]} 3. Bb5 {[%clk 0:12:05.3]} 3... Nf6 {[%clk
0:11:49.4]} 4. d3 {[%clk 0:12:05.5]} 4... a6 {[%clk 0:11:50.9]} 5. Ba4 {[%clk
0:12:06.5]} 5... Bc5 {[%clk 0:11:49.2]} 6. O-O {[%clk 0:12:05.9]} 6... b5 {[%clk
0:11:47.6]} 7. Bb3 {[%clk 0:12:07.2]} 7... d6 {[%clk 0:11:48.9]} 8. c3 {[%clk
0:12:07]} 8... O-O {[%clk 0:11:49.9]} 9. Re1 {[%clk 0:12:08.8]} 9... h6 {[%clk
0:11:47.7]} 10. a4 {[%clk 0:12:07.1]} 10... Bb7 {[%clk 0:11:45.3]} 11. axb5
{[%clk 0:11:43.3]} 11... axb5 {[%clk 0:11:46]} 12. Rxa8 {[%clk 0:11:45.8]} 12...
Bxa8 {[%clk 0:11:47.2]} 13. d4 {[%clk 0:11:47.3]} 13... Bb6 {[%clk 0:10:47.3]}
14. Na3 {[%clk 0:11:35.1]} 14... b4 {[%clk 0:10:42.8]} 15. Nc4 {[%clk
0:10:52.5]} 15... bxc3 {[%clk 0:10:30.9]} 16. bxc3 {[%clk 0:10:49.7]} 16... Na5
{[%clk 0:10:20.1]} 17. Nxb6 {[%clk 0:10:14.1]} 17... Nxb3 {[%clk 0:10:14.2]} 18.
Nxa8 {[%clk 0:09:43.8]} 18... Nxc1 {[%clk 0:10:11.4]} 19. Nxc7 {[%clk 0:09:33]}
19... Qxc7 {[%clk 0:10:06.6]} 20. Qxc1 {[%clk 0:09:33.1]} 20... Rc8 {[%clk
0:10:04.4]} 21. dxe5 {[%clk 0:09:30.4]} 21... dxe5 {[%clk 0:10:03.3]} 22. h3
{[%clk 0:09:29.8]} 22... Qxc3 {[%clk 0:10:03.5]} 23. Qxc3 {[%clk 0:09:29.3]}
23... Rxc3 {[%clk 0:10:04.4]} 24. Nxe5 {[%clk 0:09:31.2]} 24... Rc5 {[%clk
0:09:56.1]} 25. Nf3 {[%clk 0:09:07.8]} 25... Rc4 {[%clk 0:09:49.2]} 26. Nd2
{[%clk 0:08:27.2]} 26... Rd4 {[%clk 0:09:43.6]} 27. Re2 {[%clk 0:08:23.2]} 27...
Ra4 {[%clk 0:09:22]} 28. e5 {[%clk 0:07:27]} 28... Ra1+ {[%clk 0:09:17]} 29. Kh2
{[%clk 0:07:26]} 29... Nd5 {[%clk 0:09:18.4]} 30. g3 {[%clk 0:07:18.8]} 30...
Ra2 {[%clk 0:09:17.5]} 31. f4 {[%clk 0:06:48.8]} 31... Nc3 {[%clk 0:08:57.7]}
32. Rg2 {[%clk 0:06:50.2]} 32... Kf8 {[%clk 0:08:49.3]} 33. Nc4 {[%clk
0:06:48.9]} 33... Ra4 {[%clk 0:08:29.7]} 34. Nd6 {[%clk 0:06:47.4]} 34... Ke7
{[%clk 0:08:29]} 35. Rc2 {[%clk 0:06:26.4]} 35... Nd5 {[%clk 0:07:55.8]} 36.
Nf5+ {[%clk 0:06:14.5]} 36... Kd7 {[%clk 0:07:21.7]} 37. Nxg7 {[%clk 0:06:01.5]}
37... Ne3 {[%clk 0:07:22.1]} 38. Rd2+ {[%clk 0:06:01.7]} 38... Ke7 {[%clk
0:07:23.1]} 39. Nh5 {[%clk 0:05:57]} 39... Nf1+ {[%clk 0:07:24.3]} 0-1

[Event "Rapid della Domenica"]
[Site "Chess.com"]
[Date "2020.05.03"]
[Round "2"]
[White "giulioscaglione"]
[Black "ferrariand"]
[Result "1-0"]
[WhiteElo "1402"]
[BlackElo "1500"]
[TimeControl "720+3"]
[EndTime "6:44:00 PDT"]
[Termination "giulioscaglione ha vinto per abbandono"]

1. b3 {[%clk 0:12:02.9]} 1... e5 {[%clk 0:11:50.9]} 2. Bb2 {[%clk 0:12:04.2]}
2... Nc6 {[%clk 0:11:48.4]} 3. e3 {[%clk 0:12:05.7]} 3... Nf6 {[%clk 0:11:40.4]}
4. Bb5 {[%clk 0:12:06.4]} 4... d6 {[%clk 0:11:40.8]} 5. Ne2 {[%clk 0:12:06]}
5... Bd7 {[%clk 0:11:40.7]} 6. d3 {[%clk 0:12:03.6]} 6... a6 {[%clk 0:11:41.4]}
7. Bxc6 {[%clk 0:12:04.9]} 7... Bxc6 {[%clk 0:11:41]} 8. O-O {[%clk 0:12:07.1]}
8... Be7 {[%clk 0:11:37.9]} 9. Nd2 {[%clk 0:12:08]} 9... O-O {[%clk 0:11:38.7]}
10. Ng3 {[%clk 0:12:09]} 10... Qd7 {[%clk 0:11:32.3]} 11. e4 {[%clk 0:12:09.7]}
11... Rfe8 {[%clk 0:11:07]} 12. Bc1 {[%clk 0:12:10.6]} 12... d5 {[%clk
0:10:59.5]} 13. f3 {[%clk 0:11:59]} 13... Bc5+ {[%clk 0:10:48.8]} 14. Kh1 {[%clk
0:12:00]} 14... Bd4 {[%clk 0:10:43.3]} 15. Rb1 {[%clk 0:11:49.5]} 15... Rad8
{[%clk 0:10:11.5]} 16. Bb2 {[%clk 0:11:47]} 16... Bxb2 {[%clk 0:10:02.3]} 17.
Rxb2 {[%clk 0:11:48.5]} 17... dxe4 {[%clk 0:10:02.6]} 18. Ndxe4 {[%clk
0:11:43.7]} 18... Bxe4 {[%clk 0:09:52.3]} 19. Nxe4 {[%clk 0:11:19.3]} 19... Nxe4
{[%clk 0:09:53.1]} 20. fxe4 {[%clk 0:11:20.4]} 20... Qd4 {[%clk 0:09:35.3]} 21.
Rb1 {[%clk 0:11:13.9]} 21... Re6 {[%clk 0:09:35.1]} 22. Qf3 {[%clk 0:11:06.1]}
22... Rf8 {[%clk 0:09:13.8]} 23. Qf2 {[%clk 0:10:59.1]} 23... Qc3 {[%clk
0:08:53.1]} 24. Qe1 {[%clk 0:10:39]} 24... Qxc2 {[%clk 0:08:36.9]} 25. Rc1
{[%clk 0:10:16.6]} 25... Qxd3 {[%clk 0:08:34.9]} 26. Rxc7 {[%clk 0:10:17.9]}
26... Qb5 {[%clk 0:07:57.8]} 27. Qd1 {[%clk 0:09:07]} 27... Rd6 {[%clk
0:07:41.1]} 28. Qe1 {[%clk 0:08:29.6]} 28... Rg6 {[%clk 0:07:19.8]} 29. Rc2
{[%clk 0:08:10.8]} 29... f6 {[%clk 0:07:04.9]} 30. Rcf2 {[%clk 0:08:01.1]} 30...
Rd8 {[%clk 0:06:03.6]} 31. Qc1 {[%clk 0:07:44.9]} 31... Rg4 {[%clk 0:05:29.1]}
32. Qe3 {[%clk 0:06:43.3]} 32... Qd3 {[%clk 0:05:13.2]} 33. Qxd3 {[%clk
0:06:13.2]} 33... Rxd3 {[%clk 0:05:13.8]} 34. Re2 {[%clk 0:06:11.4]} 34... Rd4
{[%clk 0:05:03.3]} 35. Rfe1 {[%clk 0:06:11]} 35... Rf4 {[%clk 0:04:23.5]} 36. g3
{[%clk 0:05:57]} 36... Rf3 {[%clk 0:04:23.1]} 37. Kg2 {[%clk 0:05:44.4]} 37...
Rfd3 {[%clk 0:04:22.9]} 38. Kf2 {[%clk 0:05:43.7]} 38... Rd2 {[%clk 0:04:15.7]}
39. Rxd2 {[%clk 0:05:40.2]} 39... Rxd2+ {[%clk 0:04:16.7]} 40. Re2 {[%clk
0:05:42.7]} 40... Rxe2+ {[%clk 0:04:16.6]} 41. Kxe2 {[%clk 0:05:45.2]} 41... Kf7
{[%clk 0:04:18.4]} 42. Kd3 {[%clk 0:05:48]} 42... Ke6 {[%clk 0:04:20.1]} 43. Kc4
{[%clk 0:05:50.9]} 43... Kd6 {[%clk 0:04:21.2]} 44. b4 {[%clk 0:05:51.6]} 44...
b6 {[%clk 0:04:22.3]} 45. a4 {[%clk 0:05:53.1]} 45... Kc6 {[%clk 0:04:21.4]} 46.
g4 {[%clk 0:05:48.5]} 46... g6 {[%clk 0:04:21.5]} 47. h4 {[%clk 0:05:49.8]}
47... h6 {[%clk 0:04:17.2]} 48. Kd3 {[%clk 0:05:51.4]} 48... g5 {[%clk 0:04:03]}
49. h5 {[%clk 0:05:49.4]} 49... b5 {[%clk 0:03:59.2]} 50. a5 {[%clk 0:05:45]}
50... Kd6 {[%clk 0:03:53.6]} 51. Ke3 {[%clk 0:05:46.6]} 51... Ke6 {[%clk
0:03:43.7]} 52. Kd3 {[%clk 0:05:47.2]} 52... f5 {[%clk 0:03:31.2]} 53. exf5+
{[%clk 0:05:46.8]} 53... Kf6 {[%clk 0:03:31.4]} 54. Ke4 {[%clk 0:05:48.7]} 54...
Kf7 {[%clk 0:02:50.7]} 55. Kxe5 {[%clk 0:05:50.2]} 55... Ke7 {[%clk 0:02:51.2]}
56. f6+ {[%clk 0:05:51.2]} 56... Kf7 {[%clk 0:02:52.1]} 57. Kf5 {[%clk
0:05:52.8]} 1-0

[Event "Rapid della Domenica"]
[Site "Chess.com"]
[Date "2020.05.03"]
[Round "2"]
[White "fausto2p"]
[Black "sirmale49"]
[Result "0-1"]
[WhiteElo "972"]
[BlackElo "1412"]
[TimeControl "720+3"]
[EndTime "6:46:11 PDT"]
[Termination "sirmale49 ha vinto per tempo"]

1. d4 {[%clk 0:12:02.9]} 1... d5 {[%clk 0:11:59.6]} 2. c4 {[%clk 0:12:04.4]}
2... e5 {[%clk 0:11:58.7]} 3. dxe5 {[%clk 0:12:03.9]} 3... d4 {[%clk 0:11:56.6]}
4. Nf3 {[%clk 0:12:05]} 4... c5 {[%clk 0:11:47]} 5. a3 {[%clk 0:11:51.8]} 5...
Be6 {[%clk 0:11:37.1]} 6. b3 {[%clk 0:11:19.1]} 6... Nc6 {[%clk 0:11:24.8]} 7.
Nbd2 {[%clk 0:10:53.3]} 7... Be7 {[%clk 0:11:17.2]} 8. g3 {[%clk 0:10:32]} 8...
Nh6 {[%clk 0:11:10.4]} 9. Bg2 {[%clk 0:10:15.2]} 9... O-O {[%clk 0:11:06.1]} 10.
O-O {[%clk 0:10:13.9]} 10... f6 {[%clk 0:10:58.4]} 11. Bb2 {[%clk 0:09:53.9]}
11... fxe5 {[%clk 0:10:47.9]} 12. Ne4 {[%clk 0:09:42.2]} 12... Bf5 {[%clk
0:10:40.8]} 13. Nfd2 {[%clk 0:09:12.7]} 13... Qd7 {[%clk 0:10:25.3]} 14. e3
{[%clk 0:07:56.1]} 14... Bh3 {[%clk 0:10:17.2]} 15. exd4 {[%clk 0:07:33.7]}
15... cxd4 {[%clk 0:10:06.1]} 16. b4 {[%clk 0:07:01.5]} 16... Bxg2 {[%clk
0:09:49.2]} 17. Kxg2 {[%clk 0:07:01.3]} 17... Nf5 {[%clk 0:09:41.1]} 18. Nf3
{[%clk 0:06:07.4]} 18... Rad8 {[%clk 0:09:24.1]} 19. b5 {[%clk 0:05:35.2]} 19...
Na5 {[%clk 0:09:11.8]} 20. Nxe5 {[%clk 0:05:33.2]} 20... Qe6 {[%clk 0:08:54]}
21. Re1 {[%clk 0:04:06.9]} 21... Qxe5 {[%clk 0:08:52]} 22. Ng5 {[%clk
0:03:41.4]} 22... Ne3+ {[%clk 0:07:41.9]} 23. fxe3 {[%clk 0:03:36.5]} 23... Qxg5
{[%clk 0:06:40.1]} 24. exd4 {[%clk 0:03:02.5]} 24... Nxc4 {[%clk 0:06:28.8]} 25.
Bc1 {[%clk 0:03:00.9]} 25... Qd5+ {[%clk 0:06:25.9]} 26. Kh3 {[%clk 0:02:50.1]}
26... Bd6 {[%clk 0:05:47.3]} 27. Qb3 {[%clk 0:00:49.6]} 27... Qf5+ {[%clk
0:05:42.6]} 28. Kg2 {[%clk 0:00:47.9]} 28... Qf2+ {[%clk 0:05:40.8]} 29. Kh3
{[%clk 0:00:36.6]} 29... Qxe1 {[%clk 0:05:32.1]} 30. Qxc4+ {[%clk 0:00:36.4]}
30... Kh8 {[%clk 0:05:27.8]} 31. Bb2 {[%clk 0:00:20.3]} 31... Qe7 {[%clk
0:05:16.7]} 32. Bc3 {[%clk 0:00:04.5]} 32... Rf6 {[%clk 0:05:00.2]} 33. Re1
{[%clk 0:00:03.4]} 33... Rh6+ {[%clk 0:04:58.9]} 34. Kg2 {[%clk 0:00:04.9]}
34... Qd7 {[%clk 0:04:41]} 35. d5 {[%clk 0:00:03.3]} 35... Qh3+ {[%clk 0:04:36]}
36. Kf3 {[%clk 0:00:04.5]} 36... Rf8+ {[%clk 0:04:32.3]} 0-1